[Event "Titled Tuesday Blitz October 19 2021"]
[White "Ibarra Jerez, Jose Carlos"]
[Black "Gabrielian, Artur"]
[WhiteFideId "2226332"]
[BlackFideId "4131002"]
[WhiteElo "2626"]
[BlackElo "2489"]
[Result "1/2-1/2"]
[Round "09"]
[TimeControl "180+1"]
[Date "2021.10.19"]
[WhiteClock "0:00:04"]
[BlackClock "0:00:09"]

1. Nf3 {[%clk 0:03:00]}  Nf6 {[%clk 0:02:59]} 2. b3 {[%clk 0:02:56]}  g6 {[%clk 0:02:58]} 3. Bb2 {[%clk 0:02:56]}  Bg7 {[%clk 0:02:59]} 4. g3 {[%clk 0:02:56]}  O-O {[%clk 0:02:59]} 5. Bg2 {[%clk 0:02:56]}  d6 {[%clk 0:03:00]} 6. d4 {[%clk 0:02:56]}  b5 {[%clk 0:03:00]} 7. O-O {[%clk 0:02:53]}  Bb7 {[%clk 0:03:00]} 8. Qd3 {[%clk 0:02:53]}  a6 {[%clk 0:03:01]} 9. Nbd2 {[%clk 0:02:50]}  Nbd7 {[%clk 0:02:52]} 10. c4 {[%clk 0:02:47]}  c5 {[%clk 0:02:48]} 11. d5 {[%clk 0:02:44]}  bxc4 {[%clk 0:02:38]} 12. bxc4 {[%clk 0:02:42]}  a5 {[%clk 0:02:37]} 13. Bc3 {[%clk 0:02:19]}  Ba6 {[%clk 0:02:35]} 14. e4 {[%clk 0:02:17]}  Rb8 {[%clk 0:02:23]} 15. Ne1 {[%clk 0:02:15]}  a4 {[%clk 0:02:16]} 16. Nc2 {[%clk 0:02:14]}  Qc7 {[%clk 0:02:15]} 17. h3 {[%clk 0:02:06]}  h5 {[%clk 0:02:14]} 18. f4 {[%clk 0:02:05]}  Ne8 {[%clk 0:01:47]} 19. Rae1 {[%clk 0:02:01]}  Bxc3 {[%clk 0:01:46]} 20. Qxc3 {[%clk 0:02:02]}  Ng7 {[%clk 0:01:46]} 21. g4 {[%clk 0:01:50]}  hxg4 {[%clk 0:01:45]} 22. hxg4 {[%clk 0:01:51]}  g5 {[%clk 0:01:45]} 23. e5 {[%clk 0:01:34]}  gxf4 {[%clk 0:01:44]} 24. exd6 {[%clk 0:01:30]}  Qxd6 {[%clk 0:01:40]} 25. Ne4 {[%clk 0:01:26]}  Qg6 {[%clk 0:01:40]} 26. Rxf4 {[%clk 0:01:24]}  f6 {[%clk 0:01:35]} 27. Ref1 {[%clk 0:01:13]}  Ne5 {[%clk 0:01:32]} 28. Nxc5 {[%clk 0:01:13]}  Bc8 {[%clk 0:01:20]} 29. Ne3 {[%clk 0:00:44]}  Nxg4 {[%clk 0:01:12]} 30. Be4 {[%clk 0:00:39]}  Qg5 {[%clk 0:01:05]} 31. Nxg4 {[%clk 0:00:39]}  Bxg4 {[%clk 0:01:04]} 32. Qg3 {[%clk 0:00:40]}  f5 {[%clk 0:00:37]} 33. Bxf5 {[%clk 0:00:40]}  Rxf5 {[%clk 0:00:28]} 34. Rxf5 {[%clk 0:00:36]}  Nxf5 {[%clk 0:00:29]} 35. Qxb8+ {[%clk 0:00:27]}  Kh7 {[%clk 0:00:29]} 36. Ne6 {[%clk 0:00:24]}  Qe3+ {[%clk 0:00:27]} 37. Rf2 {[%clk 0:00:18]}  Qe1+ {[%clk 0:00:23]} 38. Rf1 {[%clk 0:00:19]}  Qe3+ {[%clk 0:00:23]} 39. Kh1 {[%clk 0:00:08]}  Bf3+ {[%clk 0:00:14]} 40. Rxf3 {[%clk 0:00:06]}  Qxf3+ {[%clk 0:00:14]} 41. Kg1 {[%clk 0:00:06]}  Qe3+ {[%clk 0:00:14]} 42. Kg2 {[%clk 0:00:06]}  Qe2+ {[%clk 0:00:13]} 43. Kg1 {[%clk 0:00:04]}  Qg4+ {[%clk 0:00:10]} 44. Kf2 {[%clk 0:00:04]}  Qh4+ {[%clk 0:00:09]} 45. Kf3 {[%clk 0:00:05]}  Qh3+ {[%clk 0:00:07]} 46. Ke4 {[%clk 0:00:04]}  Nd6+ {[%clk 0:00:05]} 47. Kd4 {[%clk 0:00:02]}  Qg4+ {[%clk 0:00:05]} 48. Ke3 {[%clk 0:00:03]}  Nxc4+ {[%clk 0:00:05]} 49. Kd3 {[%clk 0:00:03]}  Nd6 {[%clk 0:00:04]} 50. Qb2 {[%clk 0:00:02]}  Qf5+ {[%clk 0:00:03]} 51. Kd2 {[%clk 0:00:01]}  Qf2+ {[%clk 0:00:03]} 52. Kc3 {[%clk 0:00:01]}  Qf6+ {[%clk 0:00:03]} 53. Kc2 {[%clk 0:00:01]}  Qf5+ {[%clk 0:00:04]} 54. Kc1 {[%clk 0:00:01]}  Qf1+ {[%clk 0:00:04]} 55. Kc2 {[%clk 0:00:02]}  Qe2+ {[%clk 0:00:05]} 56. Kb1 {[%clk 0:00:02]}  Qd3+ {[%clk 0:00:04]} 57. Qc2 {[%clk 0:00:03]}  Qxc2+ {[%clk 0:00:05]} 58. Kxc2 {[%clk 0:00:04]}  Kg6 {[%clk 0:00:05]} 59. Kc3 {[%clk 0:00:04]}  Kf5 {[%clk 0:00:06]} 60. Nc5 {[%clk 0:00:04]}  Ke5 {[%clk 0:00:06]} 61. Nxa4 {[%clk 0:00:04]}  Kxd5 {[%clk 0:00:07]} 62. Kb4 {[%clk 0:00:05]}  Kc6 {[%clk 0:00:07]} 63. Nc3 {[%clk 0:00:05]}  e5 {[%clk 0:00:07]} 64. a4 {[%clk 0:00:05]}  e4 {[%clk 0:00:08]} 65. Nxe4 {[%clk 0:00:02]}  Nxe4 {[%clk 0:00:08]} 66. a5 {[%clk 0:00:03]}  Nc5 {[%clk 0:00:09]} 67. a6 {[%clk 0:00:04]}  Nxa6+ {[%clk 0:00:09]} 1/2-1/2


[Site "https://www.chess.com"]

[Event "Titled Tuesday Blitz October 19 2021"]
[White "Jaracz, Pawel"]
[Black "Zhigalko, Sergei"]
[WhiteFideId "1102222"]
[BlackFideId "13502956"]
[WhiteElo "2495"]
[BlackElo "2662"]
[Result "0-1"]
[Round "09"]
[TimeControl "180+1"]
[Date "2021.10.19"]
[WhiteClock "0:00:02"]
[BlackClock "0:00:03"]

1. e4 {[%clk 0:03:00]}  c5 {[%clk 0:03:00]} 2. Nf3 {[%clk 0:03:01]}  Nc6 {[%clk 0:03:00]} 3. Bb5 {[%clk 0:02:57]}  Nf6 {[%clk 0:03:00]} 4. Bxc6 {[%clk 0:02:49]}  dxc6 {[%clk 0:02:59]} 5. d3 {[%clk 0:02:47]}  Bg4 {[%clk 0:02:59]} 6. Nbd2 {[%clk 0:02:45]}  Nd7 {[%clk 0:02:58]} 7. h3 {[%clk 0:02:43]}  Bh5 {[%clk 0:02:59]} 8. Nf1 {[%clk 0:02:31]}  e6 {[%clk 0:02:55]} 9. g4 {[%clk 0:02:27]}  Bg6 {[%clk 0:02:55]} 10. Ng3 {[%clk 0:02:25]}  Bd6 {[%clk 0:02:54]} 11. Rg1 {[%clk 0:02:20]}  c4 {[%clk 0:02:46]} 12. d4 {[%clk 0:02:14]}  Bxg3 {[%clk 0:02:45]} 13. Rxg3 {[%clk 0:02:12]}  Bxe4 {[%clk 0:02:45]} 14. Qe2 {[%clk 0:02:04]}  Bd5 {[%clk 0:02:36]} 15. Nd2 {[%clk 0:01:55]}  b5 {[%clk 0:02:06]} 16. Ne4 {[%clk 0:01:52]}  O-O {[%clk 0:02:04]} 17. Bf4 {[%clk 0:01:44]}  Bxe4 {[%clk 0:01:58]} 18. Qxe4 {[%clk 0:01:44]}  Nf6 {[%clk 0:01:59]} 19. Qe5 {[%clk 0:01:39]}  Nd5 {[%clk 0:01:56]} 20. Bd2 {[%clk 0:01:38]}  Qb8 {[%clk 0:01:43]} 21. Qe4 {[%clk 0:01:36]}  a5 {[%clk 0:01:35]} 22. Kf1 {[%clk 0:01:36]}  b4 {[%clk 0:01:26]} 23. Kg2 {[%clk 0:01:22]}  Qb5 {[%clk 0:01:20]} 24. c3 {[%clk 0:01:21]}  c5 {[%clk 0:01:12]} 25. Rc1 {[%clk 0:01:15]}  cxd4 {[%clk 0:01:04]} 26. Qxd4 {[%clk 0:01:14]}  Rac8 {[%clk 0:01:00]} 27. Kh2 {[%clk 0:01:01]}  Rfd8 {[%clk 0:01:00]} 28. Qe4 {[%clk 0:00:59]}  Rc7 {[%clk 0:00:23]} 29. Rf3 {[%clk 0:00:57]}  b3 {[%clk 0:00:20]} 30. a3 {[%clk 0:00:53]}  Rcd7 {[%clk 0:00:19]} 31. Bg5 {[%clk 0:00:52]}  Nxc3 {[%clk 0:00:14]} 32. Qf4 {[%clk 0:00:30]}  f6 {[%clk 0:00:03]} 33. Bxf6 {[%clk 0:00:25]}  Nd5 {[%clk 0:00:02]} 34. Qg5 {[%clk 0:00:21]}  Rf8 {[%clk 0:00:02]} 35. Re1 {[%clk 0:00:05]}  Rxf6 {[%clk 0:00:02]} 36. Rxf6 {[%clk 0:00:06]}  Qb8+ {[%clk 0:00:02]} 37. Re5 {[%clk 0:00:06]}  Nxf6 {[%clk 0:00:02]} 38. f4 {[%clk 0:00:05]}  Rd5 {[%clk 0:00:02]} 39. Rxd5 {[%clk 0:00:04]}  exd5 {[%clk 0:00:03]} 40. Qf5 {[%clk 0:00:03]}  Kh8 {[%clk 0:00:02]} 41. g5 {[%clk 0:00:03]}  Nh5 {[%clk 0:00:03]} 42. Qf7 {[%clk 0:00:02]}  Qxf4+ {[%clk 0:00:03]} 0-1


[Site "https://www.chess.com"]

[Event "Titled Tuesday Blitz October 19 2021"]
[White "Lazavik, Denis"]
[Black "Borsuk, Konstantin"]
[WhiteFideId "13515110"]
[BlackFideId "14113406"]
[WhiteElo "2436"]
[BlackElo "2397"]
[Result "1-0"]
[Round "09"]
[TimeControl "180+1"]
[Date "2021.10.19"]
[WhiteClock "0:02:32"]
[BlackClock "0:02:15"]

1. d4 {[%clk 0:03:00]}  Nf6 {[%clk 0:02:52]} 2. c4 {[%clk 0:03:01]}  e6 {[%clk 0:02:53]} 3. Nf3 {[%clk 0:03:02]}  b6 {[%clk 0:02:52]} 4. g3 {[%clk 0:03:01]}  Bb7 {[%clk 0:02:53]} 5. Bg2 {[%clk 0:03:02]}  g6 {[%clk 0:02:53]} 6. O-O {[%clk 0:03:01]}  Bg7 {[%clk 0:02:54]} 7. Bf4 {[%clk 0:03:01]}  O-O {[%clk 0:02:53]} 8. Nc3 {[%clk 0:03:02]}  Ne4 {[%clk 0:02:51]} 9. Nb5 {[%clk 0:03:01]}  d6 {[%clk 0:02:47]} 10. Ng5 {[%clk 0:02:58]}  Nxg5 {[%clk 0:02:39]} 11. Bxb7 {[%clk 0:02:57]}  Nh3+ {[%clk 0:02:38]} 12. Kh1 {[%clk 0:02:55]}  Nd7 {[%clk 0:02:27]} 13. Be3 {[%clk 0:02:54]}  a6 {[%clk 0:02:21]} 14. Nc3 {[%clk 0:02:48]}  Ra7 {[%clk 0:02:18]} 15. Bg2 {[%clk 0:02:47]}  Ng5 {[%clk 0:02:15]} 16. h4 {[%clk 0:02:32]} 1-0


[Site "https://www.chess.com"]

[Event "Titled Tuesday Blitz October 19 2021"]
[White "Nigmatov, Ortik"]
[Black "Arencibia Monduy, Antonio"]
[WhiteFideId "14202131"]
[BlackFideId "3507939"]
[WhiteElo "2346"]
[BlackElo "2547"]
[Result "1-0"]
[Round "09"]
[TimeControl "180+1"]
[Date "2021.10.19"]
[WhiteClock "0:00:57"]
[BlackClock "0:00:03"]

1. e4 {[%clk 0:03:00]}  e6 {[%clk 0:02:56]} 2. d4 {[%clk 0:03:00]}  d5 {[%clk 0:02:56]} 3. Nc3 {[%clk 0:03:00]}  dxe4 {[%clk 0:02:56]} 4. Nxe4 {[%clk 0:03:00]}  Nd7 {[%clk 0:02:56]} 5. Nf3 {[%clk 0:03:00]}  Ngf6 {[%clk 0:02:57]} 6. Ned2 {[%clk 0:03:01]}  Be7 {[%clk 0:02:57]} 7. g3 {[%clk 0:02:57]}  b6 {[%clk 0:02:52]} 8. Bg2 {[%clk 0:02:58]}  Bb7 {[%clk 0:02:53]} 9. O-O {[%clk 0:02:58]}  O-O {[%clk 0:02:53]} 10. c4 {[%clk 0:02:54]}  c5 {[%clk 0:02:36]} 11. Nb3 {[%clk 0:02:55]}  cxd4 {[%clk 0:02:35]} 12. Nbxd4 {[%clk 0:02:55]}  Qc7 {[%clk 0:02:14]} 13. Qe2 {[%clk 0:02:53]}  Rfe8 {[%clk 0:01:22]} 14. Re1 {[%clk 0:02:47]}  a6 {[%clk 0:01:21]} 15. a3 {[%clk 0:02:46]}  Rac8 {[%clk 0:01:21]} 16. b3 {[%clk 0:02:46]}  Nc5 {[%clk 0:01:15]} 17. Bf4 {[%clk 0:02:44]}  Bd6 {[%clk 0:01:14]} 18. Bxd6 {[%clk 0:02:28]}  Qxd6 {[%clk 0:01:14]} 19. Rad1 {[%clk 0:02:29]}  Qc7 {[%clk 0:01:14]} 20. Qe5 {[%clk 0:02:22]}  Qxe5 {[%clk 0:01:09]} 21. Nxe5 {[%clk 0:02:23]}  Bxg2 {[%clk 0:01:07]} 22. Kxg2 {[%clk 0:02:24]}  Kf8 {[%clk 0:01:03]} 23. b4 {[%clk 0:02:21]}  Na4 {[%clk 0:01:00]} 24. b5 {[%clk 0:02:21]}  axb5 {[%clk 0:00:57]} 25. cxb5 {[%clk 0:02:22]}  Nc3 {[%clk 0:00:54]} 26. Rd3 {[%clk 0:02:18]}  Nfd5 {[%clk 0:00:50]} 27. Rc1 {[%clk 0:01:56]}  Na4 {[%clk 0:00:36]} 28. Ndc6 {[%clk 0:01:52]}  Nc5 {[%clk 0:00:33]} 29. Rf3 {[%clk 0:01:43]}  f6 {[%clk 0:00:33]} 30. Nc4 {[%clk 0:01:36]}  Rc7 {[%clk 0:00:23]} 31. Nxb6 {[%clk 0:01:33]}  Nxb6 {[%clk 0:00:13]} 32. Rxc5 {[%clk 0:01:33]}  Ra8 {[%clk 0:00:13]} 33. Rd3 {[%clk 0:01:26]}  Nd5 {[%clk 0:00:13]} 34. Nd4 {[%clk 0:01:24]}  Rxc5 {[%clk 0:00:13]} 35. Nxe6+ {[%clk 0:01:24]}  Ke7 {[%clk 0:00:13]} 36. Nxc5 {[%clk 0:01:25]}  Nb6 {[%clk 0:00:09]} 37. a4 {[%clk 0:01:22]}  Rc8 {[%clk 0:00:08]} 38. Rc3 {[%clk 0:01:15]}  Ra8 {[%clk 0:00:06]} 39. h4 {[%clk 0:01:03]}  Kd6 {[%clk 0:00:05]} 40. a5 {[%clk 0:01:02]}  Nd5 {[%clk 0:00:04]} 41. Rc1 {[%clk 0:01:01]}  Ke5 {[%clk 0:00:04]} 42. a6 {[%clk 0:00:59]}  Nb6 {[%clk 0:00:03]} 43. Rd1 {[%clk 0:00:55]}  Rc8 {[%clk 0:00:03]} 44. Nd7+ {[%clk 0:00:55]}  Nxd7 {[%clk 0:00:03]} 45. Rxd7 {[%clk 0:00:56]}  Rb8 {[%clk 0:00:02]} 46. Rb7 {[%clk 0:00:56]}  Ra8 {[%clk 0:00:02]} 47. a7 {[%clk 0:00:56]}  Kd6 {[%clk 0:00:02]} 48. b6 {[%clk 0:00:57]}  Kc6 {[%clk 0:00:03]} 49. Rb8 {[%clk 0:00:57]} 1-0


[Site "https://www.chess.com"]

[Event "Titled Tuesday Blitz October 19 2021"]
[White "Obolenskikh, Dmitry"]
[Black "Vallejo Diaz, Javier"]
[WhiteFideId "4156013"]
[BlackFideId "2256398"]
[WhiteElo "2541"]
[BlackElo "2663"]
[Result "1-0"]
[Round "09"]
[TimeControl "180+1"]
[Date "2021.10.19"]
[WhiteClock "0:00:28"]
[BlackClock "0:00:08"]

1. Nf3 {[%clk 0:02:57]}  d5 {[%clk 0:02:59]} 2. e3 {[%clk 0:02:57]}  Nf6 {[%clk 0:02:59]} 3. c4 {[%clk 0:02:57]}  c6 {[%clk 0:02:58]} 4. Nc3 {[%clk 0:02:56]}  e6 {[%clk 0:02:53]} 5. b3 {[%clk 0:02:55]}  Nbd7 {[%clk 0:02:52]} 6. Bb2 {[%clk 0:02:56]}  Be7 {[%clk 0:02:52]} 7. d4 {[%clk 0:02:55]}  b6 {[%clk 0:02:52]} 8. Bd3 {[%clk 0:02:55]}  Bb7 {[%clk 0:02:52]} 9. O-O {[%clk 0:02:55]}  O-O {[%clk 0:02:52]} 10. Qe2 {[%clk 0:02:52]}  c5 {[%clk 0:02:49]} 11. cxd5 {[%clk 0:02:52]}  exd5 {[%clk 0:02:48]} 12. Ba6 {[%clk 0:02:49]}  Bxa6 {[%clk 0:02:44]} 13. Qxa6 {[%clk 0:02:49]}  cxd4 {[%clk 0:02:44]} 14. Nxd4 {[%clk 0:02:46]}  Nc5 {[%clk 0:02:44]} 15. Qe2 {[%clk 0:02:45]}  Rc8 {[%clk 0:02:39]} 16. Rfd1 {[%clk 0:02:44]}  Qc7 {[%clk 0:02:36]} 17. Nf5 {[%clk 0:02:40]}  Rfd8 {[%clk 0:02:30]} 18. Rac1 {[%clk 0:02:38]}  Qb7 {[%clk 0:02:19]} 19. Qf3 {[%clk 0:02:13]}  Bf8 {[%clk 0:01:48]} 20. h3 {[%clk 0:01:42]}  g6 {[%clk 0:01:08]} 21. Nd4 {[%clk 0:01:42]}  Bg7 {[%clk 0:01:06]} 22. Qe2 {[%clk 0:01:41]}  Nfe4 {[%clk 0:01:05]} 23. Ncb5 {[%clk 0:01:20]}  a6 {[%clk 0:01:01]} 24. Nc3 {[%clk 0:01:20]}  Nxc3 {[%clk 0:00:59]} 25. Rxc3 {[%clk 0:01:16]}  Ne4 {[%clk 0:00:57]} 26. Rxc8 {[%clk 0:01:16]}  Rxc8 {[%clk 0:00:58]} 27. Nf3 {[%clk 0:01:13]}  Bxb2 {[%clk 0:00:43]} 28. Qxb2 {[%clk 0:01:13]}  Rc3 {[%clk 0:00:43]} 29. Nd4 {[%clk 0:01:04]}  Qc7 {[%clk 0:00:39]} 30. a4 {[%clk 0:01:02]}  Qc5 {[%clk 0:00:26]} 31. Qe2 {[%clk 0:00:58]}  Rc1 {[%clk 0:00:23]} 32. Rxc1 {[%clk 0:00:53]}  Qxc1+ {[%clk 0:00:23]} 33. Qf1 {[%clk 0:00:52]}  Qc8 {[%clk 0:00:20]} 34. f3 {[%clk 0:00:46]}  Nd6 {[%clk 0:00:19]} 35. Qd3 {[%clk 0:00:44]}  Qc1+ {[%clk 0:00:18]} 36. Kh2 {[%clk 0:00:44]}  a5 {[%clk 0:00:19]} 37. Ne2 {[%clk 0:00:43]}  Qc5 {[%clk 0:00:19]} 38. Nf4 {[%clk 0:00:43]}  Nf5 {[%clk 0:00:17]} 39. Nxd5 {[%clk 0:00:43]}  Qd6+ {[%clk 0:00:17]} 40. Kg1 {[%clk 0:00:43]}  Qc5 {[%clk 0:00:14]} 41. Kf2 {[%clk 0:00:39]}  h5 {[%clk 0:00:14]} 42. g4 {[%clk 0:00:39]}  hxg4 {[%clk 0:00:14]} 43. hxg4 {[%clk 0:00:40]}  Nd6 {[%clk 0:00:14]} 44. Nf6+ {[%clk 0:00:37]}  Kg7 {[%clk 0:00:14]} 45. Qxd6 {[%clk 0:00:35]}  Qc2+ {[%clk 0:00:08]} 46. Kg3 {[%clk 0:00:35]}  Qc1 {[%clk 0:00:09]} 47. Ne4 {[%clk 0:00:33]}  Qg1+ {[%clk 0:00:09]} 48. Kf4 {[%clk 0:00:34]}  Qh2+ {[%clk 0:00:09]} 49. Ng3 {[%clk 0:00:32]}  Qh6+ {[%clk 0:00:10]} 50. Ke4 {[%clk 0:00:32]}  Qh3 {[%clk 0:00:09]} 51. Qe5+ {[%clk 0:00:32]}  Kg8 {[%clk 0:00:08]} 52. Kd3 {[%clk 0:00:30]}  Qg2 {[%clk 0:00:08]} 53. Ne4 {[%clk 0:00:30]}  Qxf3 {[%clk 0:00:09]} 54. Nf6+ {[%clk 0:00:29]}  Kf8 {[%clk 0:00:09]} 55. g5 {[%clk 0:00:28]}  Qd1+ {[%clk 0:00:09]} 56. Kc4 {[%clk 0:00:28]}  Qc2+ {[%clk 0:00:09]} 57. Kb5 {[%clk 0:00:29]}  Qxb3+ {[%clk 0:00:10]} 58. Ka6 {[%clk 0:00:29]}  Qxa4 {[%clk 0:00:09]} 59. Qd6+ {[%clk 0:00:28]}  Kg7 {[%clk 0:00:08]} 60. Qe7 {[%clk 0:00:28]}  Qc4+ {[%clk 0:00:09]} 61. Kxb6 {[%clk 0:00:27]}  Qb3+ {[%clk 0:00:09]} 62. Kxa5 {[%clk 0:00:27]}  Qa2+ {[%clk 0:00:09]} 63. Kb6 {[%clk 0:00:27]}  Qb3+ {[%clk 0:00:09]} 64. Kc7 {[%clk 0:00:28]}  Qc4+ {[%clk 0:00:10]} 65. Kd8 {[%clk 0:00:28]}  Qd3+ {[%clk 0:00:10]} 66. Nd7 {[%clk 0:00:28]}  Qf5 {[%clk 0:00:09]} 67. Qe5+ {[%clk 0:00:27]}  Qxe5 {[%clk 0:00:08]} 68. Nxe5 {[%clk 0:00:28]}  f6 {[%clk 0:00:09]} 69. Ng4 {[%clk 0:00:26]}  fxg5 {[%clk 0:00:09]} 70. Ke7 {[%clk 0:00:27]}  Kg8 {[%clk 0:00:08]} 71. e4 {[%clk 0:00:27]}  Kg7 {[%clk 0:00:08]} 72. e5 {[%clk 0:00:28]} 1-0


[Site "https://www.chess.com"]

[Event "Titled Tuesday Blitz October 19 2021"]
[White "Palchuk, Andrii"]
[Black "Kezin, Roman"]
[WhiteFideId "14176688"]
[BlackFideId "24124621"]
[WhiteElo "2322"]
[BlackElo "2557"]
[Result "0-1"]
[Round "09"]
[TimeControl "180+1"]
[Date "2021.10.19"]
[WhiteClock "0:00:20"]
[BlackClock "0:00:53"]

1. d4 {[%clk 0:02:57]}  d5 {[%clk 0:02:38]} 2. c4 {[%clk 0:02:55]}  e5 {[%clk 0:02:36]} 3. dxe5 {[%clk 0:02:55]}  d4 {[%clk 0:02:37]} 4. Nf3 {[%clk 0:02:54]}  Nc6 {[%clk 0:02:37]} 5. a3 {[%clk 0:02:53]}  Bg4 {[%clk 0:02:34]} 6. Nbd2 {[%clk 0:02:49]}  Qd7 {[%clk 0:02:24]} 7. b4 {[%clk 0:02:37]}  O-O-O {[%clk 0:02:15]} 8. Bb2 {[%clk 0:02:37]}  f6 {[%clk 0:02:15]} 9. exf6 {[%clk 0:02:14]}  Nxf6 {[%clk 0:02:16]} 10. b5 {[%clk 0:02:12]}  Na5 {[%clk 0:02:04]} 11. Ne5 {[%clk 0:01:56]}  Qf5 {[%clk 0:01:58]} 12. Nf7 {[%clk 0:01:24]}  d3 {[%clk 0:01:55]} 13. Nxd8 {[%clk 0:00:49]}  Bc5 {[%clk 0:01:54]} 14. f3 {[%clk 0:00:37]}  Rxd8 {[%clk 0:01:54]} 15. g3 {[%clk 0:00:23]}  Bxf3 {[%clk 0:01:12]} 16. Nxf3 {[%clk 0:00:19]}  d2+ {[%clk 0:01:10]} 17. Qxd2 {[%clk 0:00:19]}  Rxd2 {[%clk 0:01:10]} 18. Kxd2 {[%clk 0:00:20]}  Nb3+ {[%clk 0:01:05]} 19. Kc3 {[%clk 0:00:20]}  Nxa1 {[%clk 0:01:05]} 20. Bxa1 {[%clk 0:00:21]}  Ne4+ {[%clk 0:01:04]} 21. Kb3 {[%clk 0:00:21]}  Nf2 {[%clk 0:01:04]} 22. Rg1 {[%clk 0:00:20]}  Qb1+ {[%clk 0:01:04]} 23. Bb2 {[%clk 0:00:20]}  Nd1 {[%clk 0:00:53]} 24. Bh3+ {[%clk 0:00:20]}  Kb8 {[%clk 0:00:53]} 0-1


[Site "https://www.chess.com"]

[Event "Titled Tuesday Blitz October 19 2021"]
[White "Siva Mahadevan"]
[Black "Gaehwiler, Gabriel"]
[WhiteFideId "25043153"]
[BlackFideId "1314530"]
[WhiteElo "2203"]
[BlackElo "2320"]
[Result "1-0"]
[Round "09"]
[TimeControl "180+1"]
[Date "2021.10.19"]
[WhiteClock "0:01:27"]
[BlackClock "0:01:21"]

1. e4 {[%clk 0:03:00]}  c5 {[%clk 0:02:59]} 2. Nf3 {[%clk 0:03:00]}  d6 {[%clk 0:02:58]} 3. d4 {[%clk 0:03:01]}  cxd4 {[%clk 0:02:59]} 4. Nxd4 {[%clk 0:03:01]}  Nf6 {[%clk 0:03:00]} 5. Nc3 {[%clk 0:03:02]}  a6 {[%clk 0:03:01]} 6. Bg5 {[%clk 0:03:02]}  Nbd7 {[%clk 0:03:00]} 7. Bc4 {[%clk 0:03:02]}  Qb6 {[%clk 0:03:00]} 8. O-O {[%clk 0:03:03]}  Qc5 {[%clk 0:02:51]} 9. Bd5 {[%clk 0:03:03]}  g6 {[%clk 0:02:45]} 10. Re1 {[%clk 0:03:03]}  Bg7 {[%clk 0:02:43]} 11. Qd2 {[%clk 0:02:59]}  O-O {[%clk 0:02:23]} 12. Nb3 {[%clk 0:02:39]}  Qc7 {[%clk 0:02:23]} 13. Bh6 {[%clk 0:02:39]}  Nb6 {[%clk 0:02:23]} 14. Bxg7 {[%clk 0:02:39]}  Kxg7 {[%clk 0:02:24]} 15. Nd4 {[%clk 0:02:18]}  Nc4 {[%clk 0:02:13]} 16. Bxc4 {[%clk 0:02:16]}  Qxc4 {[%clk 0:02:14]} 17. Rad1 {[%clk 0:02:16]}  Be6 {[%clk 0:02:12]} 18. b3 {[%clk 0:02:04]}  Qc5 {[%clk 0:02:10]} 19. Na4 {[%clk 0:01:58]}  Qc7 {[%clk 0:02:07]} 20. c4 {[%clk 0:01:57]}  Rac8 {[%clk 0:01:59]} 21. f3 {[%clk 0:01:50]}  Bd7 {[%clk 0:01:55]} 22. Nc3 {[%clk 0:01:50]}  b5 {[%clk 0:01:52]} 23. Nd5 {[%clk 0:01:50]}  Nxd5 {[%clk 0:01:33]} 24. exd5 {[%clk 0:01:51]}  Rfe8 {[%clk 0:01:33]} 25. cxb5 {[%clk 0:01:41]}  a5 {[%clk 0:01:33]} 26. a4 {[%clk 0:01:37]}  Qc5 {[%clk 0:01:31]} 27. Qf2 {[%clk 0:01:28]}  Kg8 {[%clk 0:01:21]} 28. Nc6 {[%clk 0:01:27]} 1-0


[Site "https://www.chess.com"]

[Event "Titled Tuesday Blitz October 19 2021"]
[White "Svane, Rasmus"]
[Black "Maksimovic, Bojan"]
[WhiteFideId "4657101"]
[BlackFideId "14408120"]
[WhiteElo "2643"]
[BlackElo "2439"]
[Result "1-0"]
[Round "09"]
[TimeControl "180+1"]
[Date "2021.10.19"]
[WhiteClock "0:01:07"]
[BlackClock "0:00:03"]

1. Nf3 {[%clk 0:03:00]}  Nf6 {[%clk 0:02:59]} 2. g3 {[%clk 0:02:55]}  g6 {[%clk 0:02:58]} 3. Bg2 {[%clk 0:02:55]}  Bg7 {[%clk 0:02:54]} 4. O-O {[%clk 0:02:54]}  d5 {[%clk 0:02:53]} 5. d4 {[%clk 0:02:53]}  O-O {[%clk 0:02:53]} 6. c3 {[%clk 0:02:53]}  Ne4 {[%clk 0:02:47]} 7. c4 {[%clk 0:02:47]}  dxc4 {[%clk 0:02:41]} 8. Qc2 {[%clk 0:02:46]}  Nd6 {[%clk 0:02:32]} 9. e4 {[%clk 0:02:46]}  Nc6 {[%clk 0:02:31]} 10. Be3 {[%clk 0:02:35]}  e5 {[%clk 0:01:52]} 11. dxe5 {[%clk 0:02:34]}  Nxe5 {[%clk 0:01:50]} 12. Nxe5 {[%clk 0:02:34]}  Bxe5 {[%clk 0:01:50]} 13. Nd2 {[%clk 0:02:35]}  b5 {[%clk 0:01:27]} 14. f4 {[%clk 0:02:33]}  Bg7 {[%clk 0:01:27]} 15. e5 {[%clk 0:02:05]}  Nf5 {[%clk 0:01:26]} 16. Bc5 {[%clk 0:02:06]}  Be6 {[%clk 0:01:12]} 17. Rad1 {[%clk 0:01:58]}  Nd4 {[%clk 0:01:03]} 18. Qe4 {[%clk 0:01:54]}  Bf5 {[%clk 0:00:32]} 19. Qxd4 {[%clk 0:01:51]}  Qxd4+ {[%clk 0:00:32]} 20. Bxd4 {[%clk 0:01:52]}  Rad8 {[%clk 0:00:33]} 21. Ne4 {[%clk 0:01:51]}  a6 {[%clk 0:00:23]} 22. h3 {[%clk 0:01:47]}  Rfe8 {[%clk 0:00:22]} 23. g4 {[%clk 0:01:46]}  Bxe4 {[%clk 0:00:17]} 24. Bxe4 {[%clk 0:01:47]}  f6 {[%clk 0:00:18]} 25. Bc3 {[%clk 0:01:29]}  fxe5 {[%clk 0:00:18]} 26. Rxd8 {[%clk 0:01:22]}  Rxd8 {[%clk 0:00:18]} 27. fxe5 {[%clk 0:01:23]}  c5 {[%clk 0:00:15]} 28. e6 {[%clk 0:01:17]}  Re8 {[%clk 0:00:12]} 29. Bc6 {[%clk 0:01:15]}  Re7 {[%clk 0:00:12]} 30. Bd5 {[%clk 0:01:12]}  Bxc3 {[%clk 0:00:05]} 31. bxc3 {[%clk 0:01:13]}  Kg7 {[%clk 0:00:05]} 32. g5 {[%clk 0:01:13]}  h6 {[%clk 0:00:05]} 33. h4 {[%clk 0:01:13]}  hxg5 {[%clk 0:00:05]} 34. hxg5 {[%clk 0:01:14]}  a5 {[%clk 0:00:03]} 35. Kg2 {[%clk 0:01:12]}  a4 {[%clk 0:00:03]} 36. a3 {[%clk 0:01:07]} 1-0


[Site "https://www.chess.com"]